{"text_format":"1","workbook":"xlsx","n_sheets":8,"sheets":["POCETAK","Vrsta_izvještaja","FH_analize_vode","Mikrob_analize_voda","Laboratorije (2)","Vrsta_analize","Vrsta_uzorka","GODINA"],"not_rendered":{"charts":0,"images":0,"macros":1,"external_links":0,"defined_names":7,"comments":0,"pivot_tables":0},"unopened":[],"bounds":{"document_bytes":16777216,"sheet_cells":100000,"rows_first":2000,"rows_last":500,"rows_between":2000,"halvings":0,"cell_chars":16384,"cell_head_chars":4096},"cells_cut":0,"cells_raw":0,"read":"whole","date_system":"1900"}

{"sheet":"POCETAK","index":0,"n_rows":12,"n_cols":3,"rows_kept":12,"cut":false,"hidden":false,"merged":[]}
[null,"Vrsta analiza"]
[null,"Godina izvještavanja",2026]
[null,"Vrsta uzorka"]
[null,"Laboratorija"]
[null,"Vrsta izvještaja"]
[null,"Izvještajni period"]
[]
[]
[]
[]
[]
[null,null,"Podaci nisu verifikovani."]

{"sheet":"Vrsta_izvještaja","index":1,"n_rows":13,"n_cols":3,"rows_kept":13,"cut":false,"hidden":true,"merged":[]}
[]
["Januar      "," I kvartal","2026."]
["Februar     ","II kvartal","2027."]
["Mart        ","III kvartal","2028."]
["April       ","IV kvartal"]
["Maj"]
["Juni"]
["Juli"]
["August"]
["Septembar"]
["Oktobar"]
["Novembar"]
["Decembar"]

{"sheet":"FH_analize_vode","index":2,"n_rows":20,"n_cols":100,"rows_kept":20,"cut":false,"hidden":false,"merged":[]}
[null,null,"BROJ UZORAKA",null,"Akrilamid",null,"Antimon",null,"Arsen",null,"Benzen",null,"Benzo(a)piren",null,"Bor",null,"Bromat",null,"Cijanid",null,"Bakar",null,"1,2-dihloretan",null,"Detergenti anionski",null,"Detergenti neionski",null,"Epihlorohydrin",null,"Florid",null,"Hrom",null,"Kadijum",null,"Mineralna ulja",null,"Nikl",null,"Nitrati",null,"Nitriti",null,"Olovo",null,"Pesticidi",null,"Policiklički aromatski ugljovodonici",null,"Selen",null,"Tetrahloreten i trihloreten",null,"Trihalometani - ukupni (THM)",null,"Vinil hlorid",null,"Živa",null,"Aluminijum",null,"Amonijum",null,"Boja",null,"Elektroprovodljivost",null,"Hlorid",null,"Koncentracija vodonikovih jona",null,"Mangan",null,"Miris",null,"Natrijum",null,"Utrošak KMnO4 (oksidativnost)",null,"Ukus",null,"Sulfat",null,"Ukupni organski ugljenik ",null,"Zamućenost",null,"Željezo",null,"Slobodni rezudialni hlor",null,"Radioaktivnost Tricij",null,"Radioaktivnost Ukupna indikativna doza",null,"Temperatura",null,"Ostalo"]
[null,null,"Ukupno","Neodgovara","Ukupno","Neodgovara","Ukupno","Neodgovara","Ukupno","Neodgovara","Ukupno","Neodgovara","Ukupno","Neodgovara","Ukupno","Neodgovara","Ukupno","Neodgovara","Ukupno","Neodgovara","Ukupno","Neodgovara","Ukupno","Neodgovara","Ukupno","Neodgovara","Ukupno","Neodgovara","Ukupno","Neodgovara","Ukupno","Neodgovara","Ukupno","Neodgovara","Ukupno","Neodgovara","Ukupno","Neodgovara","Ukupno","Neodgovara","Ukupno","Neodgovara","Ukupno","Neodgovara","Ukupno","Neodgovara","Ukupno","Neodgovara","Ukupno","Neodgovara","Ukupno","Neodgovara","Ukupno","Neodgovara","Ukupno","Neodgovara","Ukupno","Neodgovara","Ukupno","Neodgovara","Ukupno","Neodgovara","Ukupno","Neodgovara","Ukupno","Neodgovara","Ukupno","Neodgovara","Ukupno","Neodgovara","Ukupno","Neodgovara","Ukupno","Neodgovara","Ukupno","Neodgovara","Ukupno","Neodgovara","Ukupno","Neodgovara","Ukupno","Neodgovara","Ukupno","Neodgovara","Ukupno","Neodgovara","Ukupno","Neodgovara","Ukupno","Neodgovara","Ukupno","Neodgovara","Ukupno","Neodgovara","Ukupno","Neodgovara","Ukupno","Neodgovara","Ukupno","Neodgovara"]
[1,"VODA ZA PIĆE  ",{"$f":"C4+C9+C10+C20","v":0},{"$f":"D4+D9+D10+D20","v":0},0,0,0,0,0,0,0,0,0,0,0,0,0,0,0,0,0,0,0,0,0,0,0,0,0,0,0,0,0,0,0,0,0,0,0,0,0,0,0,0,0,0,0,0,0,0,0,0,0,0,0,0,0,0,0,0,0,0,0,0,0,0,0,{"$f":"BP4+BP9+BP10+BP20","v":0},0,0,0,0,0,0,0,0,0,0,0,0,0,0,0,0,0,0,0,0,0,0,0,0,0,0,0,0,0,0,0,0]
["1.1","Javno vodosnabdijevanje  ",{"$f":"C5+C8","v":0},{"$f":"D5+D8","v":0},0,0,0,0,0,0,0,0,0,0,0,0,0,0,0,0,0,0,0,0,0,0,0,0,0,0,0,0,0,0,0,0,0,0,0,0,0,0,0,0,0,0,0,0,0,0,0,0,0,0,0,0,0,0,0,0,0,0,0,0,0,0,0,{"$f":"BP5+BP8","v":0},0,0,0,0,0,0,0,0,0,0,0,0,0,0,0,0,0,0,0,0,0,0,0,0,0,0,0,0,0,0,0,0]
["1.1.1","Javni vodovodi  ",{"$f":"C6+C7","v":0},{"$f":"D6+D7","v":0},0,0,0,0,0,0,0,0,0,0,0,0,0,0,0,0,0,0,0,0,0,0,0,0,0,0,0,0,0,0,0,0,0,0,0,0,0,0,0,0,0,0,0,0,0,0,0,0,0,0,0,0,0,0,0,0,0,0,0,0,0,0,0,{"$f":"BP6+BP7","v":0},0,0,0,0,0,0,0,0,0,0,0,0,0,0,0,0,0,0,0,0,0,0,0,0,0,0,0,0,0,0,0,0]
["1.1.1.1","Voda na izvorištu (sirova)  "]
["1.1.1.2","Voda iz vodovodne mreže"]
["1.1.2","Ostali objekti javnog vodosnabdijevanja  "]
["1.2","Voda koja se koristi u objektu za proizvodnju hrane, na mjestu na kojem se voda koristi u proizvodnji"]
["1.3","Prirodna mineralna, prirodna izvorska i stona voda",{"$f":"C11+C14+C17","v":0},{"$f":"D11+D14+D17","v":0},0,0,0,0,0,0,0,0,0,0,0,0,0,0,0,0,0,0,0,0,0,0,0,0,0,0,0,0,0,0,0,0,0,0,0,0,0,0,0,0,0,0,0,0,0,0,0,0,0,0,0,0,0,0,0,0,0,0,0,0,0,0,0,{"$f":"BP11+BP14+BP17","v":0},0,0,0,0,0,0,0,0,0,0,0,0,0,0,0,0,0,0,0,0,0,0,0,0,0,0,0,0,0,0,0,0]
["1.3.1","Prirodna mineralna voda  ",{"$f":"C12+C13","v":0},{"$f":"D12+D13","v":0},0,0,0,0,0,0,0,0,0,0,0,0,0,0,0,0,0,0,0,0,0,0,0,0,0,0,0,0,0,0,0,0,0,0,0,0,0,0,0,0,0,0,0,0,0,0,0,0,0,0,0,0,0,0,0,0,0,0,0,0,0,0,0,{"$f":"BP12+BP13","v":0},0,0,0,0,0,0,0,0,0,0,0,0,0,0,0,0,0,0,0,0,0,0,0,0,0,0,0,0,0,0,0,0]
["1.3.1.1","Mineralna voda - izvorište (sirova)  "]
["1.3.1.2","Mineralna voda - voda u ambalaži (prometu)  "]
["1.3.2","Prirodna izvorska voda  ",{"$f":"C15+C16","v":0},{"$f":"D15+D16","v":0},0,0,0,0,0,0,0,0,0,0,0,0,0,0,0,0,0,0,0,0,0,0,0,0,0,0,0,0,0,0,0,0,0,0,0,0,0,0,0,0,0,0,0,0,0,0,0,0,0,0,0,0,0,0,0,0,0,0,0,0,0,0,0,{"$f":"BP15+BP16","v":0},0,0,0,0,0,0,0,0,0,0,0,0,0,0,0,0,0,0,0,0,0,0,0,0,0,0,0,0,0,0,0,0]
["1.3.2.1","Izvorska voda - izvorište (sirova)  "]
["1.3.2.2","Izvorska voda - voda u ambalaži (prometu)  "]
["1.3.3","Stolna voda  ",{"$f":"C18+C19","v":0},{"$f":"D18+D19","v":0},0,0,0,0,0,0,0,0,0,0,0,0,0,0,0,0,0,0,0,0,0,0,0,0,0,0,0,0,0,0,0,0,0,0,0,0,0,0,0,0,0,0,0,0,0,0,0,0,0,0,0,0,0,0,0,0,0,0,0,0,0,0,0,{"$f":"BP18+BP19","v":0},0,0,0,0,0,0,0,0,0,0,0,0,0,0,0,0,0,0,0,0,0,0,0,0,0,0,0,0,0,0,0,0]
["1.3.3.1","Stolna voda - izvorište (može biti iz vodovoda)  "]
["1.3.3.2","Stolna voda - voda u ambalaži (prometu)  "]
["1.4","Individualna vodosnadbijevanje (bunari, čatrnje, cisterne, pumpe...)  "]

{"sheet":"Mikrob_analize_voda","index":3,"n_rows":20,"n_cols":24,"rows_kept":20,"cut":false,"hidden":false,"merged":[]}
[null,"Naziv","BROJ UZORAKA",null,"Escherichia coli",null,"Enterokoki",null,"Pseudomonas aeruginosa",null,"Broj kolonija na 22°C",null,"Broj kolonija na 37°C",null,"Koliformne bakterije",null,"Clostridium perfingens (uključujući spore)",null,"Fekalne koliformne bakterije",null,"Fekalni streptokoki (Streptococuss faecalis)",null,"Crijevne protozoe, crijevne helminte i njihovi razvojni oblici"]
[null,null,"Ukupno","Ne odgovara","Ukupno","Ne odgovara","Ukupno","Ne odgovara","Ukupno","Ne odgovara","Ukupno","Ne odgovara","Ukupno","Ne odgovara","Ukupno","Ne odgovara","Ukupno","Ne odgovara","Ukupno","Ne odgovara","Ukupno","Ne odgovara","Ukupno","Ne odgovara"]
[1,"VODA ZA PIĆE  ",{"$f":"C4+C9+C10+C20","v":0},{"$f":"D4+D9+D10+D20","v":0},0,{"$f":"F4+F9+F10+F20","v":0},0,0,0,0,0,0,0,0,0,0,0,0,0,0,0,0,0,0]
["1.1","Javno vodosnabdijevanje  ",{"$f":"C5+C8","v":0},{"$f":"D5+D8","v":0},0,{"$f":"F5+F8","v":0},0,0,0,0,0,0,0,0,0,0,0,0,0,0,0,0,0,0]
["1.1.1","Javni vodovodi  ",{"$f":"C6+C7","v":0},{"$f":"D6+D7","v":0},0,{"$f":"F6+F7","v":0},0,0,0,0,0,0,0,0,0,0,0,0,0,0,0,0,0,0]
["1.1.1.1","Voda na izvorištu (sirova)  "]
["1.1.1.2","Voda iz vodovodne mreže"]
["1.1.2","Ostali objekti javnog vodosnabdijevanja  "]
["1.2","Voda koja se koristi u objektu za proizvodnju hrane, na mjestu na kojem se voda koristi u proizvodnji"]
["1.3","Prirodna mineralna, prirodna izvorska i stona voda",{"$f":"C11+C14+C17","v":0},{"$f":"D11+D14+D17","v":0},0,{"$f":"F11+F14+F17","v":0},0,0,0,0,0,0,0,0,0,0,0,0,0,0,0,0,0,0]
["1.3.1","Prirodna mineralna voda  ",{"$f":"C12+C13","v":0},{"$f":"D12+D13","v":0},0,{"$f":"F12+F13","v":0},0,0,0,0,0,0,0,0,0,0,0,0,0,0,0,0,0,0]
["1.3.1.1","Mineralna voda - izvorište (sirova)  "]
["1.3.1.2","Mineralna voda - voda u ambalaži (prometu)  "]
["1.3.2","Prirodna izvorska voda  ",{"$f":"C15+C16","v":0},{"$f":"D15+D16","v":0},0,{"$f":"F15+F16","v":0},0,0,0,0,0,0,0,0,0,0,0,0,0,0,0,0,0,0]
["1.3.2.1","Izvorska voda - izvorište (sirova)  "]
["1.3.2.2","Izvorska voda - voda u ambalaži (prometu)  "]
["1.3.3","Stolna voda  ",{"$f":"C18+C19","v":0},{"$f":"D18+D19","v":0},0,0,0,0,0,0,0,0,0,0,0,0,0,0,0,0,0,{"$f":"V18+V19","v":0},0,0]
["1.3.3.1","Stolna voda - izvorište (može biti iz vodovoda)  "]
["1.3.3.2","Stolna voda - voda u ambalaži (prometu)  "]
["1.4","Individualna vodosnadbijevanje (bunari, čatrnje, cisterne, pumpe...)  "]

{"sheet":"Laboratorije (2)","index":4,"n_rows":38,"n_cols":2,"rows_kept":38,"cut":false,"hidden":true,"merged":[]}
[]
[1,"Control-H d.o.o. Mostar"]
[2,"Euro Inspekt, d.o.o Osječani Doboj"]
[3,"Euro Inspekt, d.o.o Sarajevo"]
[null,"Federalni agromediteranski zavod, Mostar "]
[4,"Federalni zavod za javno zdravstvo OJ Mostar"]
[5,"Federalni zavod za javno zdravstvo OJ Sarajevo"]
[6,"Federalni zavod za poljoprivredu Sarajevo"]
[7,"Herkon d.o.o. Mostar"]
[8,"Inspekt RGH d.o.o. Sarajevo"]
[9,"Institut za vode d.o.o. Bijeljina"]
[10,"JU Poljoprivredni institut Republike Srpske, Banja Luka"]
[11,"JU \"Veterinarski zavod HNK/Ž\" Mostar"]
[12,"JU \"Veterinarski zavod Tuzlanskog kantona\" Tuzla"]
[13,"JU \"Veterinarski zavod\" Bihać"]
[14,"JU Institut za zdravlje i sigurnost hrane Zenica"]
[15,"JZU\"Institut za javno zdravstvo RS\" Banja Luka"]
[16,"Odjel za Javno zdravstvo Brčko distrikta BiH "]
[17,"KJP \"Kantonalna veterinarska stanica\" Sarajevo"]
[18,"Pharmammed d.o.o. Travnik"]
[19,"Poljoprivredni zavod Unsko-sanskog kantona, Bihać"]
[20,"PU Institut za biomedicinsku dijagnostiku i istraživanja \"GENOM\", Travnika"]
[21,"Sistem Qualitas d.o.o. Pale"]
[22,"Slaven d.o.o. Veterinarski zavod"]
[23,"Veterinarski institut RS \"dr. Vaso Butozan\" Banja  Luka"]
[24,"Veterinarski laboratorij “MULTI LAB” d.o.o. Tuzla"]
[25,"Veterinarski zavod \"TEOLAB\" Dvorovi Bijeljina"]
[26,"Veterinarski fakultet Univerziteta u Sarajevu"]
[27,"Zagreb inspekt d.o.o. Mostar "]
[28,"Zavod za hranu i veterinarstvo Hercegbosanske županije"]
[29,"Zavod za javno zdravstvo Bosansko-podrinjskog kantona, Goražde"]
[30,"Zavod za javno zdravstvo HNK, Mostar"]
[31,"Zavod za javno zdravstvo Kantona Sarajevo"]
[32,"Zavod za javno zdravstvo SBK/KSB Travnik"]
[33,"Zavod za javno zdravstvo Tuzlanskog kantona, Tuzla"]
[34,"Zavod za javno zdravstvo Unsko-sanskog kantona, Bihać"]
[35,"Zavod za javno zdravstvo Posavskog kantona, Orašje"]
[36,"Zavod za javno zdravstvo Zapadno-hercegovačke županije, Grude"]

{"sheet":"Vrsta_analize","index":5,"n_rows":4,"n_cols":2,"rows_kept":4,"cut":false,"hidden":true,"merged":[]}
[]
[null,"Fizičko-hemijske analize vode"]
[null,"Mikrobiološke analize vode"]
[null,"Fizičko-hemijske i mikrobiološke analize vode"]

{"sheet":"Vrsta_uzorka","index":6,"n_rows":3,"n_cols":2,"rows_kept":3,"cut":false,"hidden":true,"merged":[]}
[]
[null,"OSTALO"]
[null,"SLUŽBENA KONTROLA"]

{"sheet":"GODINA","index":7,"n_rows":11,"n_cols":2,"rows_kept":11,"cut":false,"hidden":true,"merged":[]}
[]
[null,2026]
[null,2027]
[null,2028]
[null,2029]
[null,2030]
[null,2031]
[null,2032]
[null,2033]
[null,2034]
[null,2035]